Cogmind - Beta 16 @@@ ROGUE MODE // 2025.12.30 @ 13:19:03 Player: exo Result: Destroyed by 8U-XJH(R) with Subdweller Laser Performance ------------- Evolutions (0) 0 Regions Visited (3) 600 Robots Destroyed (8) 40 Value Destroyed (111) 111 Prototype IDs (0) 0 Alien Tech Used (0) 0 Bonus (0) 0 TOTAL SCORE: 751 Bonus ------- None Cogmind --------- Core Integrity 0/250 Matter 190/300 Energy 125/125 System Corruption 0% Temperature Cool (6) Movement Core (150) Ox2 Location -10/Subcaves Parts ------- > --- POWER (1) -------- Light Ion Engine > --- PROPULSION (2) --- (None) > --- UTILITY (2) ------ Small Storage Unit Visual Processing Unit > --- WEAPON (2) ------- (None) > --- INVENTORY (8) ---- Heat Sink Structural Scanner Terrain Scanner Power Shielding Scrap Shield Assault Rifle Peak State ------------ > --- POWER ------------ Ion Engine > --- PROPULSION ------- Light Treads Light Treads > --- UTILITY ---------- Small Storage Unit Visual Processing Unit > --- WEAPON ----------- Assault Rifle Assault Rifle > --- INVENTORY -------- Light Ion Engine Grenade Launcher [Rating: 8] Favorites ----------- Power Ion Engine Engine Ion Engine Propulsion Light Treads Treads Light Treads Utility Small Storage Unit Storage Small Storage Unit Processor Visual Processing Unit Weapon Assault Rifle Ballistic Gun Assault Rifle Launcher Grenade Launcher Build | -11 -10 -10 -10 ------- Run | Yrd Mat Min Sub Slots Evolved . | . . . . Power . | . . . . Propulsion . | . . . . Utility . | . . . . Weapon . | . . . . Parts Attached 10 | 6 3 1 . Power 2 | 1 . 1 . Engine 2 | 1 . 1 . Core . | . . . . Reactor . | . . . . Propulsion 2 | 2 . . . Treads 2 | 2 . . . Leg . | . . . . Wheel . | . . . . Hover . | . . . . Flight . | . . . . Utility 2 | 1 1 . . Device . | . . . . Storage 1 | 1 . . . Processor 1 | . 1 . . Hackware . | . . . . Protection . | . . . . Artifact . | . . . . Weapon 4 | 2 2 . . Energy Gun . | . . . . Energy Cannon . | . . . . Ballistic Gun 3 | 2 1 . . Ballistic Cannon . | . . . . Launcher 1 | . 1 . . Special Weapon . | . . . . Impact Weapon . | . . . . Slashing Weapon . | . . . . Piercing Weapon . | . . . . Special Melee Weapon . | . . . . Unidentified Prototypes . | . . . . Parts Lost 6 | . . 5 1 Power 1 | . . 1 . Propulsion 2 | . . 2 . Utility . | . . . . Weapon 3 | . . 2 1 Highest Loss Streak 5 | . . 5 1 To Critical Strikes . | . . . . Average Backups 5 | 1 5 5 5 Power . | . 1 . . Propulsion . | . . . . Utility 3 | . 2 4 4 Weapon 1 | . 1 1 1 Tool/Special . | . . . . Unused Backups 5 | . . . 5 Power . | . . . . Propulsion . | . . . . Utility 5 | . . . 5 Weapon . | . . . . Tool/Special . | . . . . Average Slot Usage (%) 84 | . 98 70 57 Engine 13 | . 14 12 14 Treads 18 | . 28 10 . Storage 14 | . 14 14 14 Processor 13 | . 12 14 14 Ballistic Gun 22 | . 27 18 14 Peak Build Rating 8 | 6 8 8 5 Average Rating 6 | 3 7 5 4 On Entrance 4 | . 6 8 5 Avg Prop Armor Cover (%) . | . . . . Naked Turns . | . . . . Heaviest Build 15 | 14 15 13 10 Greatest Support 40 | 40 40 40 3 Greatest Overweight (x) 3 | 1 . 3 3 Average Overweight (x) . | . . 1 2 Largest Inventory Capacity 8 | 8 8 8 8 Average Capacity 7 | 7 8 8 8 Most Carried 7 | 5 7 7 7 Average Carried 5 | 1 5 5 6 Final Capacity 8 | 8 8 8 8 Final Carried 7 | 1 7 5 7 Class Distribution -------------------- 100% | Mutant Dominant Class ---------------- Mutant | -10/Materials Mutant | -10/Mines Mutant | -10/Subcaves Resources | -11 -10 -10 -10 ----------- Run | Yrd Mat Min Sub Matter Collected 359 | 141 68 150 . Remotely . | . . . . Salvage Created 118 | . 118 . . Parts 16 | . 16 . . Haulers Intercepted . | . . . . Recyclers Shooed . | . . . . Parts Field Recycled . | . . . . Retrieved Matter . | . . . . Parts Self-Destructed . | . . . . Prevented . | . . . . Parts Restored . | . . . . Kills | -11 -10 -10 -10 ------- Run | Yrd Mat Min Sub Combat Hostiles Destroyed 6 | . 6 . . Guns 4 | . 4 . . AOE 2 | . 2 . . Classes Destroyed 4 | . 4 . . Worker 1 | . 1 . . Watcher 1 | . 1 . . Swarmer 5 | . 5 . . Grunt 1 | . 1 . . Best Kill Streak 3 | . 3 . . Combat Bots Only 2 | . 2 . . Max Kills in Single Turn 3 | . 3 . . Gunslinging 1 | . 1 . . Exploded 2 | . 2 . . Melee . | . . . . Uniques/NPCs Destroyed . | . . . . Combat | -11 -10 -10 -10 -------- Run | Yrd Mat Min Sub Hostile Shots Fired 57 | . 30 24 3 Missed 15 | . 12 3 . Hits 42 | . 18 21 3 Projectile 42 | . 18 21 3 AOE 21 | . . 21 . Critical Strikes 1 | . 1 . . Damage Taken 975 | . 175 723 77 Core 252 | . 38 163 51 Absorbed by Shields . | . . . . Core Remaining (%) 100 | 100 . . . Volleys Fired 24 | . 16 8 . Largest 2 | . 2 2 . Hottest 50 | . 50 50 . Shots Fired 45 | . 32 13 . Gun 39 | . 31 8 . Cannon . | . . . . Launcher 6 | . 1 5 . Special . | . . . . Kinetic 39 | . 31 8 . Thermal . | . . . . Explosive 6 | . 1 5 . Electromagnetic . | . . . . Robot Hit Streak 6 | . 3 6 . Robot Miss Streak 4 | . 4 2 . Penetration Max . | . . . . Secondary Targets 1 | . 1 . . Max Gunslinging Chain 1 | . 1 . . Shots Hit Robots 21 | . 12 9 . Core Hits 15 | . 9 6 . Critical Kills . | . . . . Critical Parts Destroyed . | . . . . Critical Strikes . | . . . . Melee Attacks . | . . . . Impact . | . . . . Slashing . | . . . . Piercing . | . . . . Sneak Attacks . | . . . . Combat Hostiles . | . . . . Follow-up Attacks . | . . . . Damage Inflicted 377 | . 269 108 . Guns 215 | . 144 71 . Cannons . | . . . . Explosions 162 | . 125 37 . Melee . | . . . . Ramming . | . . . . Kinetic 215 | . 144 71 . Thermal . | . . . . Explosive 162 | . 125 37 . Electromagnetic . | . . . . Impact . | . . . . Slashing . | . . . . Piercing . | . . . . Highest Corruption . | . . . . Average Corruption . | . . . . Corruption Purged . | . . . . Corruption Blocked . | . . . . Overload Shots . | . . . . Overflow Damage 5 | . 5 . . Projectiles . | . . . . Explosions 5 | . 5 . . Melee . | . . . . Knockbacks . | . . . . Impact . | . . . . Kinetic . | . . . . Secondary . | . . . . Self-Inflicted Damage 23 | . 23 . . Shots 1 | . 1 . . Rammed . | . . . . Targets Rammed . | . . . . Kicked . | . . . . Crushed . | . . . . Highest Temperature . | . . . . Average Temperature . | . . . . Received Heat Transfer 27 | . 12 . 15 Siege Activations . | . . . . Martial Activations . | . . . . Shielding Activations . | . . . . Robots Disrupted . | . . . . Combat Hostiles . | . . . . Robots Corrupted . | . . . . Combat Hostiles . | . . . . Parts Fried . | . . . . Impact Corruptions . | . . . . Robots Melted . | . . . . Combat Hostiles . | . . . . Parts Melted . | . . . . Heat Transferred . | . . . . Parts Sabotaged . | . . . . Parts Stolen . | . . . . Parts Stripped . | . . . . Power Chain Reactions . | . . . . Alert | -11 -10 -10 -10 ------- Run | Yrd Mat Min Sub Maximum Alert Level . | . . . . Low Security (%) 100 | 100 100 100 . Level 1 . | . . . . Level 2 . | . . . . Level 3 . | . . . . Level 4 . | . . . . Level 5 . | . . . . High Security . | . . . . Max Security . | . . . . Peak Influence 117 | . 117 12 . Initial 12 | . . 12 . Average 18 | . 30 1 . Influence Increases 192 | . 185 7 . Destroy 0b10 Robot/C 120 | . 120 . . Destroy 0b10 Robot/NC 10 | . 10 . . Destroy Leader 32 | . 32 . . Disable Machine 15 | . 15 . . Destroy Structure 15 | . 8 7 . Influence Decreases 192 | . 152 40 . Entered New Map 21 | . . 21 . Time Decay 167 | . 152 15 . Lost Part 4 | . . 4 . Squads Dispatched 1 | . 1 . . Investigation 1 | . 1 . . Extermination . | . . . . Reinforcement . | . . . . Assault . | . . . . Garrison . | . . . . Intercept . | . . . . Searches Triggered . | . . . . Construction Impeded . | . . . . Haulers Reinforced . | . . . . Active Scanning Responses . | . . . . Cargo Convoy Interrupts . | . . . . Stealth | -11 -10 -10 -10 --------- Run | Yrd Mat Min Sub Distress Signals . | . . . . Communications Jammed . | . . . . Distress Signals . | . . . . Times Spotted 15 | . 9 1 5 Peak Tracking Total 3 | . 3 1 3 Tactical Retreats . | . . . . Traps | -11 -10 -10 -10 ------- Run | Yrd Mat Min Sub Traps Triggered 1 | . 1 . . Indirectly . | . . . . Trap Hack Attempts . | . . . . Triggered . | . . . . Disarmed . | . . . . Reprogrammed . | . . . . Reused . | . . . . Traps Extracted . | . . . . Installed . | . . . . Triggered . | . . . . Machines | -11 -10 -10 -10 ---------- Run | Yrd Mat Min Sub Machines Disabled 1 | . 1 . . Max in Single Turn 1 | . 1 . . Machines Repaired . | . . . . Machines Dismantled . | . . . . Machines Sabotaged . | . . . . Overloaded Fab Kills . | . . . . Hacking | -11 -10 -10 -10 --------- Run | Yrd Mat Min Sub Machines Accessed . | . . . . Terminals . | . . . . Fabricators . | . . . . Repair Stations . | . . . . Recycling Units . | . . . . Scanalyzers . | . . . . Garrison Access . | . . . . Total Hacks . | . . . . Successful . | . . . . Failed . | . . . . Catastrophic . | . . . . Database Lockouts . | . . . . Manual . | . . . . Terminals . | . . . . Fabricators . | . . . . Repair Stations . | . . . . Recycling Units . | . . . . Scanalyzers . | . . . . Garrison Access . | . . . . Terminal Hacks . | . . . . Fabricator Hacks . | . . . . Repair Station Hacks . | . . . . Recycling Unit Hacks . | . . . . Scanalyzer . | . . . . Garrison Access Hacks . | . . . . Unauthorized Hacks . | . . . . Terminals . | . . . . Fabricators . | . . . . Repair Stations . | . . . . Recycling Units . | . . . . Scanalyzers . | . . . . Garrison Access . | . . . . Data Cores Recovered . | . . . . Used . | . . . . Hacking Detections . | . . . . Full Trace Events . | . . . . Feedback Events . | . . . . Feedback Blocked . | . . . . Robot Schematics Acquired . | . . . . Robots Built . | . . . . Authchips . | . . . . Time . | . . . . Total Robot Build Rating . | . . . . Part Schematics Acquired . | . . . . Parts Built . | . . . . Authchips . | . . . . Time . | . . . . Total Part Build Rating . | . . . . Part Studies Acquired . | . . . . Parts Repaired . | . . . . Time . | . . . . Parts Recycled . | . . . . Recycled Matter . | . . . . Retrieved Matter . | . . . . Retrieved Components . | . . . . Parts Scanalyzed . | . . . . Part Schematics Acquired . | . . . . Parts Damaged . | . . . . Bothacking | -11 -10 -10 -10 ------------ Run | Yrd Mat Min Sub Used RIF Installer . | . . . . Robots Hacked . | . . . . Non-combat . | . . . . Combat . | . . . . Robot Hacks Applied . | . . . . Relay Couplers Released . | . . . . Fabnet Peak Effective % . | . . . . Robots Rewired . | . . . . Allies Hacked . | . . . . Hacks Repelled . | . . . . Allies | -11 -10 -10 -10 -------- Run | Yrd Mat Min Sub Total Allies . | . . . . Largest Group . | . . . . Highest-Rated Group . | . . . . Highest-Rated Ally . | . . . . Total Orders . | . . . . Ally Attacks . | . . . . Total Damage . | . . . . Kills . | . . . . Allies Corrupted . | . . . . Allies Melted . | . . . . Intel | -11 -10 -10 -10 ------- Run | Yrd Mat Min Sub Active Infowar (turns) 935 | . 512 289 134 Optics 935 | . 512 289 134 Robot Analysis Total . | . . . . Derelict Logs Recovered . | . . . . Drone Launches . | . . . . Drone Recoveries . | . . . . Exploration | -11 -10 -10 -10 ------------- Run | Yrd Mat Min Sub Turns Passed 1036 | 67 546 289 134 Spaces Moved 553 | 44 304 144 61 Core 181 | 26 . 94 61 Treads 372 | 18 304 50 . Legs . | . . . . Wheels . | . . . . Hover . | . . . . Flight . | . . . . Fastest Speed 50 | 50 160 150 150 Average Speed 164 | 99 160 180 199 Slowest Speed 200 | 160 160 200 200 Overloaded Moves . | . . . . Propulsion Burnouts . | . . . . Robots Hopped . | . . . . Potential Cave-ins . | . . . . Cave-ins Triggered . | . . . . Exploration Rate (%) 23 | 4 42 40 9 Regions Visited 3 Branch Regions 2 Pre-discovered Areas . | . . . . Known Exits Taken . | . . . . Unknown Exits Taken 3 | 1 1 1 . Scrap Searched . | . . . . Spaces Dug . | . . . . Terrain Destroyed 21 | . 6 15 . Melee . | . . . . Projectile . | . . . . AOE 21 | . 6 15 . Terrain Rammed . | . . . . Walls Destroyed . | . . . . Machines Disabled . | . . . . Actions | -11 -10 -10 -10 --------- Run | Yrd Mat Min Sub Total 629 | 66 331 159 73 Wait 29 | 12 2 4 11 Move 550 | 43 303 143 61 Hop . | . . . . Pick Up 13 | 5 7 . 1 Fast Attach 2 | 2 . . . Attach 7 | 4 1 2 . Detach . | . . . . Swap 4 | . 2 2 . Drop . | . . . . Fire 24 | . 16 8 . Melee . | . . . . Ram . | . . . . Kick . | . . . . Crush . | . . . . Escape Stasis . | . . . . Rewire . | . . . . Trap . | . . . . Miscellaneous . | . . . . Route ------- -11/Scrapyard -10/Materials (discovered 2 exits: [*Mat] / [*Min]) -10/Mines (discovered 2 exits: [*Mat] / [*Sub]) -10/Subcaves History --------- Turn | Location | Event 3 | -11/Scrapyard | Discovered new exit (range 15) 68 | -11/Scrapyard | Entered Materials 313 | -10/Materials | Build established: Mutant 429 | -10/Materials | Discovered new exit (range 11) 458 | -10/Materials | Discovered new exit (range 18) 614 | -10/Materials | Entered Mines 721 | -10/Mines | Core integrity fell below 50% 723 | -10/Mines | Core integrity fell below 20% 735 | -10/Mines | Met a Derelict bent on vengeance 740 | -10/Mines | Discovered new exit (range 9) 753 | -10/Mines | Lost 5 parts (1p2n2w) 883 | -10/Mines | Discovered new exit (range 9) 903 | -10/Mines | Entered Subcaves 904 | -10/Subcaves | Approached by a straggling Scientist 1032 | -10/Subcaves | Ambushed by swarm of Subdwellers 1037 | -10/Subcaves | Destroyed by 8U-XJH(R) with Subdweller Laser Last Messages --------------- I think I can... The group I got separated from was talking about a shortcut back to the UFD." 7X-3II(h) drops a Scrap Shield: "Protect yourself with this!" Acquired Scrap Shield. FI-F5W(c): "I think it's somewhere northwest of here" FI-F5W(c): "I think it's somewhere west of here" B2-P7A(u) builds Twisted Machinery. A mess of Twisted Machinery falls from the cavern ceiling. DG-RX0(R) comes tumbling into view. 7X-3II(h): "The Subs are coming!" B2-P7A(u) builds Twisted Machinery. 0J-Y2Z(R) emerges from the Twisted Machinery. Assault Rifle destroyed. 0J-Y2Z(R) suffers critical hit (Burn). KL-RHS(R) emerges from the Twisted Machinery. 8U-XJH(R) emerges from the Twisted Machinery. Map ----- +----------------------------------------------------+ | ?????????????????????????????????????????????????? | | ?????????????????????????????????????????????????? | | ?????????????????????????????????????????????????? | | ?????????????????????????????????????????????????? | | ?????????????????????????????????????????????????? | | ?????????????????????????????????????????????????? | | ?????????????????????????????????????????????????? | | ???????????????????????? ??????????????????????? | | ???????????????????????? ??????????????????????? | | ???????????????????????? ??????????????????????? | | ???????????????????????? ??????????????????????? | | ???????????????????????# #??????????????????????? | | ???????????????????????# #??????????????????????? | | ???????????????????????# #??????????????????????? | | ??????????????????????? #??????????????????????? | | ???????????????????????# ??????????????????????? | | ??????????????????????? ##?????????????????????? | | ??????###?????????????? ##????????????????????? | | ????### #??????????????# ###??????????????????? | | ??### #??????????????# "" #??????????????????? | | ?## ##?????????????# " #???????????????????? | | ?# #??#########?## "" #???????????????????? | | ?# #?## ## # ### " ##??????????????????? | | ?# ### RR #??????????????????? | | ?## ## RR ### #????????????? | | ?## ## #""###h @ #???????????????? | | ?# #### ########?### #???????????? | | ## #??###??????????## ##???????????? | | # ##???????????????## """# ## #????????????? | | ####?????????????##c u #?#???????????????? | | ###????????????## " #????????????????? | | # #??????????????#"" #????????????????? | | ## ## #???????????????"" #????????????????? | | ## ### #??????????????? "" ##????????????????? | | ## #? ????????????? "? #?????????????????? | | #?? #???????????? ?" ?????????????????? | | ##?? ??????????? ??" ????????????????? | | ##???? ??????????#??? ????????????????? | | ##?????? ### ??????????????? ???????????????? | | #??????? #??????????????????? ???????????????? | | #??????? ???????????????????????????????????? | | ###????????????????????????????????????????????? | | ###??????????????????????????????????????????????? | | ?????????????????????????????????????????????????? | | ?????????????????????????????????????????????????? | | ?????????????????????????????????????????????????? | | ?????????????????????????????????????????????????? | | ?????????????????????????????????????????????????? | | ?????????????????????????????????????????????????? | | ?????????????????????????????????????????????????? | +----------------------------------------------------+ Best States ------------- Heat Dissipation 25 Energy Generation 10 Energy Capacity 250 Matter Stores 217 Matter Capacity 300 Sight Range 18 Terrain Scan Density 10 Evasion (%) 50 Recoil Reduction 2 Item Schematics ----------------- None Robot Schematics ------------------ None Fabricated ------------ Nothing Repaired ---------- Nothing Studied --------- None Alien Tech Used ----------------- None Achievements -------------- None Challenges ------------ None Game ------ Seed CloakTowerRipteeth Manual? 0 Play Time 00:10:31 Cumulative 6.4 hours Start 2025.12.29 @ 23:08:42 End 2025.12.30 @ 13:19:03 Sessions 1 Manual Loads 0 Difficulty Rogue Special Mode None Game No. 23 Rogue 23 Adventurer 0 Explorer 0 Win Type - Total 0 Types 0/0/0/0/0/0/0/0/0/0 Lore% 5 Gallery% 9 Achievement% 9 Wizard Run 0 Options --------- Layout 1 ASCII 0 Keyboard 0 Movement Mouse Keybinds 0 Fullscreen 0 Font 16/SmallcapsGlow Map View 50x35 Zoom Use 0% Tactical HUD 0 Map Filters NONE Filters NONE Steam 1 RUN: a3e415e0-8f77-4f72-b992-41dcd289e98d